fUST/lending_fUST_20250302
["ID","MTS","AMOUNT","RATE_DAILY","PERIOD"]
[354956991,1740845475662,-752.75,0.00028493,2]
[354956992,1740845475671,-500.0,0.00028493,2]
[354956993,1740845475681,-500.0,0.00028493,2]
[354956994,1740845475691,-1787.86,0.00028493,2]
[354956995,1740845475701,-500.0,0.00028493,2]
[354956996,1740845475712,-500.0,0.00028493,2]
[354956997,1740845475722,-500.0,0.00028493,2]
[354956998,1740845475731,-612.51,0.00028493,2]
[354956999,1740845475742,-500.0,0.00028493,2]
[354957000,1740845475751,-500.0,0.00028493,2]
[354957001,1740845475761,-500.0,0.00028493,2]
[354957002,1740845475771,-500.0,0.00028493,2]
[354957003,1740845475781,-1099.17,0.00028493,2]
[354957004,1740845475791,-500.0,0.00028493,2]
[354957005,1740845475801,-500.0,0.00028493,2]
[354957006,1740845475811,-673.42,0.00028493,2]
[354957007,1740845475821,-500.0,0.00028493,2]
[354957008,1740845475830,-500.0,0.00028493,2]
[354957009,1740845475840,-1099.45,0.00028493,2]
[354957010,1740845475849,-500.0,0.00028493,2]
[354957011,1740845475859,-500.0,0.00028493,2]
[354957012,1740845475874,-500.0,0.00028493,2]
[354957013,1740845475884,-500.0,0.00028493,2]
[354957014,1740845475894,-536.71,0.00028493,2]
[354957015,1740845475904,-500.0,0.00028493,2]
[354957016,1740845475915,-632.14,0.00028493,2]
[354957017,1740845475925,-500.0,0.00028493,2]
[354957018,1740845475937,-500.0,0.00028493,2]
[354957019,1740845475947,-1905.85,0.00028493,2]
[354957020,1740845475958,-500.0,0.00028493,2]
[354957021,1740845475968,-500.0,0.00028493,2]
[354957022,1740845475978,-500.0,0.00028493,2]
[354957023,1740845475988,-501.52044205,0.00028493,2]
[354957024,1740845475998,-1685.79,0.00028493,2]
[354957025,1740845476009,-500.0,0.00028493,2]
[354957026,1740845476019,-500.0,0.00028493,2]
[354957027,1740845476030,-564.6,0.00028493,2]
[354957028,1740845476040,-500.0,0.00028493,2]
[354957029,1740845476050,-1059.85,0.00028493,2]
[354957030,1740845476060,-500.0,0.00028493,2]
[354957031,1740845476069,-500.0,0.00028493,2]
[354957032,1740845476079,-500.0,0.00028493,2]
[354957033,1740845476089,-732.83,0.00028493,2]
[354957034,1740845476099,-500.0,0.00028493,2]
[354957035,1740845476108,-500.0,0.00028493,2]
[354957036,1740845476118,-500.0,0.00028493,2]
[354957037,1740845476128,-740.07,0.00028493,2]
[354957038,1740845476137,-1458.62,0.00028493,2]
[354957039,1740845476147,-1284.29,0.00028493,2]
[354957040,1740845476157,-543.24,0.00028493,2]
[354957041,1740845476167,-500.0,0.00028493,2]
[354957042,1740845476177,-500.0,0.00028493,2]
[354957043,1740845476187,-500.0,0.00028493,2]
[354957044,1740845476196,-500.0,0.00028493,2]
[354957045,1740845476206,-747.81,0.00028493,2]
[354957046,1740845476216,-778.76,0.00028493,2]
[354957047,1740845476226,-500.0,0.00028493,2]
[354957048,1740845476235,-500.0,0.00028493,2]
[354957049,1740845476245,-500.0,0.00028493,2]
[354957050,1740845476255,-500.0,0.00028493,2]
[354957051,1740845476265,-500.0,0.00028493,2]
[354957052,1740845476275,-500.0,0.00028493,2]
[354957053,1740845476285,-1431.27,0.00028493,2]
[354957054,1740845476294,-1335.29,0.00028493,2]
[354957055,1740845476304,-1315.24,0.00028493,2]
[354957056,1740845476313,-673.47,0.00028493,2]
[354957057,1740845476323,-959.71,0.00028493,2]
[354957058,1740845476333,-716.19,0.00028493,2]
[354957059,1740845476343,-386.79695689,0.00028493,2]
[354957060,1740845476352,-578.59,0.00028493,2]
[354957061,1740845476361,-1517.25,0.00028493,2]
[354957062,1740845476371,-500.0,0.00028493,2]
[354957063,1740845476381,-500.0,0.00028493,2]
[354957064,1740845476390,-500.0,0.00028493,2]
[354957065,1740845476399,-2094.38,0.00028493,2]
[354957066,1740845476409,-575.46,0.00028493,2]
[354957067,1740845476418,-500.0,0.00028493,2]
[354957068,1740845476428,-500.0,0.00028493,2]
[354957069,1740845476437,-500.0,0.00028493,2]
[354957070,1740845476447,-500.0,0.00028493,2]
[354957071,1740845476456,-2170.83,0.00028493,2]
[354957072,1740845476466,-531.7,0.00028493,2]
[354957073,1740845476475,-2252.21,0.00028493,2]
[354957074,1740845476485,-591.88,0.00028493,2]
[354957075,1740845476494,-1741.22,0.00028493,2]
[354957076,1740845476503,-826.09,0.00028493,2]
[354957077,1740845476512,-664.91,0.00028493,2]
[354957078,1740845476522,-500.0,0.00028493,2]
[354957079,1740845476531,-502.03,0.00028493,2]
[354957080,1740845476541,-680.92,0.00028493,2]
[354957081,1740845476550,-500.0,0.00028493,2]
[354957082,1740845476559,-1744.53,0.00028493,2]
[354957083,1740845476569,-500.0,0.00028493,2]
[354957084,1740845476578,-512.51198397,0.00028493,2]
[354957085,1740845476588,-500.0,0.00028493,2]
[354957086,1740845476597,-685.6,0.00028493,2]
[354957087,1740845476607,-1572.62,0.00028493,2]
[354957088,1740845476617,-500.0,0.00028493,2]
[354957089,1740845476626,-500.0,0.00028493,2]
[354957090,1740845476636,-500.0,0.00028493,2]
[354957091,1740845476645,-500.0,0.00028493,2]
[354957092,1740845476655,-500.0,0.00028493,2]
[354957093,1740845476665,-500.0,0.00028493,2]
[354957094,1740845476674,-1531.22,0.00028493,2]
[354957095,1740845476684,-3254.62,0.00028493,2]
[354957096,1740845476694,-500.0,0.00028493,2]
[354957097,1740845476703,-500.0,0.00028493,2]
[354957098,1740845476714,-1370.24,0.00028493,2]
[354957099,1740845476724,-611.48,0.00028493,2]
[354957100,1740845476734,-500.0,0.00028493,2]
[354957101,1740845476745,-964.9,0.00028493,2]
[354957102,1740845476755,-509.94,0.00028493,2]
[354957103,1740845476765,-7197.11,0.00028493,2]
[354957104,1740845476775,-500.0,0.00028493,2]
[354957105,1740845476784,-500.0,0.00028493,2]
[354957106,1740845476794,-1123.34,0.00028493,2]
[354957107,1740845476804,-600.56,0.00028493,2]
[354957108,1740845476814,-500.0,0.00028493,2]
[354957109,1740845476824,-500.0,0.00028493,2]
[354957110,1740845476834,-500.0,0.00028493,2]
[354957111,1740845476844,-649.22,0.00028493,2]
[354957112,1740845476853,-710.98,0.00028493,2]
[354957113,1740845476864,-500.0,0.00028493,2]
[354957114,1740845476878,-539.97,0.00028493,2]
[354957115,1740845476888,-563.87,0.00028493,2]
[354957116,1740845476898,-3648.85,0.00028493,2]
[354957117,1740845476908,-1298.35,0.00028493,2]
[354957118,1740845476918,-500.0,0.00028493,2]
[354957119,1740845476929,-607.48,0.00028493,2]
[354957120,1740845476939,-1508.37,0.00028493,2]
[354957121,1740845476950,-500.0,0.00028493,2]
[354957122,1740845476961,-500.0,0.00028493,2]
[354957123,1740845476971,-500.0,0.00028493,2]
[354957124,1740845476981,-544.28,0.00028493,2]
[354957125,1740845476991,-500.0,0.00028493,2]
[354957126,1740845477001,-500.0,0.00028493,2]
[354957127,1740845477011,-500.0,0.00028493,2]
[354957128,1740845477021,-500.0,0.00028493,2]
[354957129,1740845477031,-500.0,0.00028493,2]
[354957130,1740845477041,-2428.02,0.00028493,2]
[354957131,1740845477052,-10399.1,0.00028493,2]
[354957132,1740845477062,-500.0,0.00028493,2]
[354957133,1740845477072,-500.0,0.00028493,2]
[354957134,1740845477083,-500.0,0.00028493,2]
[354957135,1740845477093,-500.0,0.00028493,2]
[354957136,1740845477103,-2276.78,0.00028493,2]
[354957137,1740845477113,-775.3,0.00028493,2]
[354957138,1740845477122,-723.15,0.00028493,2]
[354957139,1740845477132,-3370.6,0.00028493,2]
[354957140,1740845477142,-1321.62,0.00028493,2]
[354957141,1740845477152,-1750.68,0.00028493,2]
[354957142,1740845477161,-500.0,0.00028493,2]
[354957143,1740845477171,-762.75,0.00028493,2]
[354957144,1740845477181,-500.0,0.00028493,2]
[354957145,1740845477191,-989.74,0.00028493,2]
[354957146,1740845477201,-500.0,0.00028493,2]
[354957147,1740845477211,-17096.48,0.00028493,2]
[354957148,1740845477224,-2503.96,0.00028493,2]
[354957149,1740845477234,-2157.47,0.00028493,2]
[354957150,1740845477244,-675.89,0.00028493,2]
[354957151,1740845477254,-504.06,0.00028493,2]
[354957152,1740845477264,-500.0,0.00028493,2]
[354957153,1740845477274,-500.0,0.00028493,2]
[354957154,1740845477284,-2911.22,0.00028493,2]
[354957155,1740845477294,-500.0,0.00028493,2]
[354957156,1740845477303,-225456.27,0.00028493,2]
[354957157,1740845477313,-500.0,0.00028493,2]
[354957158,1740845477323,-500.0,0.00028493,2]
[354957159,1740845477333,-631.21,0.00028493,2]
[354957160,1740845477343,-500.0,0.00028493,2]
[354957161,1740845477352,-9650.55,0.00028493,2]
[354957162,1740845477362,-500.0,0.00028493,2]
[354957163,1740845477372,-500.0,0.00028493,2]
[354957164,1740845477381,-1303.18,0.00028493,5]
[354957165,1740845477392,-699.03,0.00028493,2]
[354957166,1740845477402,-510.24,0.00028493,2]
[354957167,1740845477411,-1183.5,0.00028493,2]
[354957168,1740845477422,-500.0,0.00028493,2]
[354957169,1740845477431,-4420.81,0.00028493,2]
[354957170,1740845477441,-921.23,0.00028493,2]
[354957171,1740845477451,-1327.23,0.00028493,2]
[354957172,1740845477463,-1581.37,0.00028493,2]
[354957173,1740845477474,-1506.63,0.00028493,2]
[354957174,1740845477484,-557.86,0.00028493,2]
[354957175,1740845477494,-1069.69,0.00028493,2]
[354957176,1740845477504,-768.55,0.00028493,2]
[354957177,1740845477515,-5083.88,0.00028493,2]
[354957178,1740845477525,-1462.35,0.00028493,2]
[354957179,1740845477535,-2348.6,0.00028493,2]
[354957180,1740845477545,-500.0,0.00028493,2]
[354957181,1740845477555,-2044.68,0.00028493,2]
[354957182,1740845477565,-533.35,0.00028493,2]
[354957183,1740845477575,-500.0,0.00028493,2]
[354957184,1740845477585,-500.0,0.00028493,2]
[354957185,1740845477595,-5976.45,0.00028493,2]
[354957186,1740845477605,-500.0,0.00028493,2]
[354957187,1740845477615,-2355.23,0.00028493,2]
[354957188,1740845477625,-780.39,0.00028493,2]
[354957189,1740845477635,-500.0,0.00028493,2]
[354957190,1740845477645,-12948.86,0.00028493,2]
[354957191,1740845477655,-1113.59,0.00028493,2]
[354957192,1740845477666,-1854.03,0.00028493,2]
[354957193,1740845477676,-500.0,0.00028493,2]
[354957194,1740845477686,-500.0,0.00028493,2]
[354957195,1740845477696,-645.91,0.00028493,2]
[354957196,1740845477706,-500.0,0.00028493,2]
[354957197,1740845477717,-500.0,0.00028493,2]
[354957198,1740845477727,-854.47,0.00028493,2]
[354957199,1740845477738,-549.93,0.00028493,2]
[354957200,1740845477748,-5672.75,0.00028493,2]
[354957201,1740845477758,-45482.56,0.00028493,2]
[354957202,1740845477768,-1730.18,0.00028493,2]
[354957203,1740845477778,-500.0,0.00028493,2]
[354957204,1740845477788,-1333.51,0.00028493,2]
[354957205,1740845477799,-780.68,0.00028493,2]
[354957206,1740845477809,-3090.36,0.00028493,2]
[354957207,1740845477820,-2015.18,0.00028493,2]
[354957208,1740845477831,-500.0,0.00028493,2]
[354957209,1740845477841,-820.13,0.00028493,2]
[354957210,1740845477852,-959.44,0.00028493,2]
[354957211,1740845477862,-500.0,0.00028493,2]
[354957212,1740845477873,-500.0,0.00028493,2]
[354957213,1740845477885,-1053.09,0.00028493,2]
[354957214,1740845477896,-500.0,0.00028493,2]
[354957215,1740845477906,-3033.51,0.00028493,2]
[354957216,1740845477917,-500.0,0.00028493,2]
[354957217,1740845477927,-3413.39,0.00028493,2]
[354957218,1740845477938,-1956.94,0.00028493,2]
[354957219,1740845477948,-861.63,0.00028493,2]
[354957220,1740845477959,-1430.2,0.00028493,2]
[354957221,1740845477971,-8129.77,0.00028493,2]
[354957222,1740845477981,-500.0,0.00028493,2]
[354957223,1740845477991,-500.0,0.00028493,2]
[354957224,1740845478002,-1043.22,0.00028493,2]
[354957225,1740845478012,-3893.91,0.00028493,2]
[354957226,1740845478023,-1959.28,0.00028493,2]
[354957227,1740845478034,-2415.63,0.00028493,2]
[354957228,1740845478044,-500.0,0.00028493,2]
[354957229,1740845478055,-13931.51,0.00028493,2]
[354957230,1740845478067,-500.0,0.00028493,2]
[354957231,1740845478078,-500.0,0.00028493,2]
[354957232,1740845478089,-500.0,0.00028493,2]
[354957233,1740845478100,-500.0,0.00028493,2]
[354957234,1740845478111,-500.0,0.00028493,2]
[354957235,1740845478122,-500.0,0.00028493,2]
[354957236,1740845478133,-1759.12,0.00028493,2]
[354957237,1740845478144,-2492.29,0.00028493,2]
[354957238,1740845478155,-611.54,0.00028493,2]
[354957239,1740845478165,-500.0,0.00028493,2]
[354957240,1740845478175,-500.0,0.00028493,2]
[354957241,1740845478185,-500.0,0.00028493,2]
[354957242,1740845478195,-188.34246364,0.00028493,2]
[354957243,1740845478205,-659.83,0.00028493,2]
[354957244,1740845478216,-500.0,0.00028493,2]
[354957245,1740845478226,-561.47,0.00028493,2]
[354957246,1740845478238,-3917.28,0.00028493,2]
[354957247,1740845478249,-250.0,0.000285,30]
[354957248,1740845478259,-14206.89,0.00028592,2]
[354957249,1740845478270,-1767.99,0.00028592,2]
[354957250,1740845478280,-500.0,0.00028592,2]
[354957251,1740845478291,-164.07420452,0.00028593,2]
[354957252,1740845478301,-500.0,0.00028593,2]
[354957253,1740845478312,-500.0,0.00028593,2]
[354957254,1740845478323,-5026.14,0.00028593,2]
[354957255,1740845478335,-500.0,0.00028593,2]
[354957256,1740845478345,-728.43,0.00028593,2]
[354957257,1740845478357,-500.0,0.00028593,2]
[354957258,1740845478367,-500.0,0.00028593,2]
[354957259,1740845478378,-644.61,0.00028593,2]
[354957260,1740845478389,-500.0,0.00028593,2]
[354957261,1740845478400,-500.0,0.00028593,2]
[354957262,1740845478411,-500.0,0.00028593,2]
[354957263,1740845478422,-500.0,0.00028593,2]
[354957264,1740845478433,-519.48016072,0.00028593,2]
[354957265,1740845478444,-500.0,0.00028593,2]
[354957266,1740845478455,-500.0,0.00028593,2]
[354957267,1740845478466,-500.0,0.00028593,2]
[354957268,1740845478477,-1658.82,0.00028593,2]
[354957269,1740845478487,-2016.43,0.00028593,2]
[354957270,1740845478498,-833.33,0.00028593,2]
[354957271,1740845478510,-896.87,0.00028593,2]
[354957272,1740845478520,-729.57,0.00028593,2]
[354957273,1740845478531,-1800.73,0.00028593,2]
[354957274,1740845478541,-500.0,0.00028593,2]
[354957275,1740845478551,-500.0,0.00028593,2]
[354957276,1740845478562,-644.3,0.00028593,2]
[354957277,1740845478572,-3233.17,0.00028593,2]
[354957278,1740845478583,-2006.78,0.00028593,2]
[354957279,1740845478594,-500.0,0.00028593,2]
[354957280,1740845478604,-244.638184,0.00028594,7]
[354957281,1740845478615,-244.638184,0.00028594,7]
[354957282,1740845478626,-75542.55971233,0.00028699,2]
[354957283,1740845478636,-244.638184,0.00028699,7]
[354957284,1740845478646,-244.638184,0.00028699,7]
[354957285,1740845478657,-746.68,0.00028767,2]
[354957286,1740845478667,-912.94,0.00028767,2]
[354957287,1740845478677,-500.0,0.00028767,2]
[354957288,1740845478688,-500.0,0.00028767,2]
[354957289,1740845478698,-500.0,0.00028767,2]
[354957290,1740845478709,-500.0,0.00028767,2]
[354957291,1740845478722,-721.67,0.00028767,2]
[354957292,1740845478732,-500.0,0.00028767,2]
[354957293,1740845478743,-815.62,0.00028767,2]
[354957294,1740845478753,-1158.25,0.00028767,2]
[354957295,1740845478763,-500.0,0.00028767,2]
[354957296,1740845478773,-500.0,0.00028767,2]
[354957297,1740845478784,-824.65,0.00028767,2]
[354957298,1740845478795,-500.0,0.00028767,2]
[354957299,1740845478806,-500.0,0.00028767,2]
[354957300,1740845478816,-821.43,0.00028767,2]
[354957301,1740845478827,-1588.65,0.00028767,2]
[354957302,1740845478838,-500.0,0.00028767,2]
[354957303,1740845478849,-1443.29,0.00028767,2]
[354957304,1740845478860,-500.0,0.00028767,2]
[354957305,1740845478872,-566.34,0.00028767,2]
[354957306,1740845478883,-500.0,0.00028767,2]
[354957307,1740845478894,-1143.22,0.00028767,2]
[354957308,1740845478904,-500.0,0.00028767,2]
[354957309,1740845478915,-500.0,0.00028767,2]
[354957310,1740845478925,-1244.64,0.00028767,2]
[354957311,1740845478936,-558.07,0.00028767,2]
[354957312,1740845478946,-603.75,0.00028767,2]
[354957313,1740845478958,-500.0,0.00028767,2]
[354957314,1740845478969,-1166.91,0.00028767,2]
[354957315,1740845478979,-500.94,0.00028767,2]
[354957316,1740845478990,-511.37662572,0.00028767,2]
[354957317,1740845479000,-500.0,0.00028767,2]
[354957318,1740845479011,-500.0,0.00028767,2]
[354957319,1740845479022,-529.17195475,0.00028767,2]
[354957320,1740845479032,-786.24,0.00028767,2]
[354957321,1740845479043,-796.34,0.00028767,2]
[354957322,1740845479053,-500.0,0.00028767,2]
[354957323,1740845479063,-500.0,0.00028767,2]
[354957324,1740845479074,-1158.67,0.00028767,2]
[354957325,1740845479085,-571.97,0.00028767,2]
[354957326,1740845479094,-673.5,0.00028767,2]
[354957327,1740845479105,-996.94,0.00028767,2]
[354957328,1740845479115,-1190.79,0.00028767,2]
[354957329,1740845479126,-344.04654153,0.00028767,2]
[354957330,1740845479136,-500.0,0.00028767,2]
[354957331,1740845479147,-725.34,0.00028767,2]
[354957332,1740845479157,-453.94059428,0.00028767,2]
[354957333,1740845479168,-524.36321022,0.00028767,2]
[354957334,1740845479178,-500.0,0.00028767,2]
[354957335,1740845479188,-500.0,0.00028767,2]
[354957336,1740845479198,-500.0,0.00028767,2]
[354957337,1740845479209,-500.0,0.00028767,2]
[354957338,1740845479219,-500.0,0.00028767,2]
[354957339,1740845479230,-500.0,0.00028767,2]
[354957340,1740845479240,-860.6,0.00028767,2]
[354957341,1740845479250,-158.73012798,0.00028767,2]
[354957342,1740845479261,-500.0,0.00028767,2]
[354957343,1740845479271,-500.0,0.00028767,2]
[354957344,1740845479281,-500.0,0.00028767,2]
[354957345,1740845479291,-527.98,0.00028767,2]
[354957346,1740845479302,-500.0,0.00028767,2]
[354957347,1740845479313,-889.37,0.00028767,2]
[354957348,1740845479324,-721.11,0.00028767,2]
[354957349,1740845479335,-1227.77,0.00028767,2]
[354957350,1740845479346,-869.26,0.00028767,2]
[354957351,1740845479356,-500.0,0.00028767,2]
[354957352,1740845479367,-680.49,0.00028767,2]
[354957353,1740845479378,-500.0,0.00028767,2]
[354957354,1740845479389,-907.98,0.00028767,2]
[354957355,1740845479399,-1111.41,0.00028767,2]
[354957356,1740845479409,-500.0,0.00028767,2]
[354957357,1740845479420,-500.0,0.00028767,2]
[354957358,1740845479431,-1426.32,0.00028767,2]
[354957359,1740845479442,-667.54,0.00028767,2]
[354957360,1740845479453,-500.0,0.00028767,2]
[354957361,1740845479463,-500.0,0.00028767,2]
[354957362,1740845479475,-500.0,0.00028767,2]
[354957363,1740845479486,-500.0,0.00028767,2]
[354957364,1740845479497,-500.0,0.00028767,2]
[354957365,1740845479508,-1657.67,0.00028767,2]
[354957366,1740845479518,-500.0,0.00028767,2]
[354957367,1740845479529,-500.0,0.00028767,2]
[354957368,1740845479540,-773.48,0.00028767,2]
[354957369,1740845479551,-500.0,0.00028767,2]
[354957370,1740845479561,-500.0,0.00028767,2]
[354957371,1740845479572,-500.0,0.00028767,2]
[354957372,1740845479582,-670.02,0.00028767,2]
[354957373,1740845479593,-500.0,0.00028767,2]
[354957374,1740845479603,-762.63,0.00028767,2]
[354957375,1740845479614,-500.0,0.00028767,2]
[354957376,1740845479624,-1176.21,0.00028767,2]
[354957377,1740845479634,-1291.3,0.00028767,2]
[354957378,1740845479645,-752.75,0.00028767,2]
[354957379,1740845479655,-500.0,0.00028767,2]
[354957380,1740845479666,-1787.86,0.00028767,2]
[354957381,1740845479676,-500.0,0.00028767,2]
[354957382,1740845479689,-500.0,0.00028767,2]
[354957383,1740845479699,-500.0,0.00028767,2]
[354957384,1740845479710,-612.51,0.00028767,2]
[354957385,1740845479721,-500.0,0.00028767,2]
[354957386,1740845479731,-500.0,0.00028767,2]
[354957387,1740845479743,-500.0,0.00028767,2]
[354957388,1740845479753,-1099.17,0.00028767,2]
[354957389,1740845479763,-500.0,0.00028767,2]
[354957390,1740845479774,-500.0,0.00028767,2]
[354957391,1740845479785,-673.42,0.00028767,2]
[354957392,1740845479796,-500.0,0.00028767,2]
[354957393,1740845479807,-500.0,0.00028767,2]
[354957394,1740845479818,-1099.45,0.00028767,2]
[354957395,1740845479830,-500.0,0.00028767,2]
[354957396,1740845479841,-500.0,0.00028767,2]
[354957397,1740845480072,-500.0,0.00028767,2]
[354957398,1740845480097,-536.71,0.00028767,2]
[354957399,1740845480108,-500.0,0.00028767,2]
[354957400,1740845480118,-632.14,0.00028767,2]
[354957401,1740845480128,-500.0,0.00028767,2]
[354957402,1740845480138,-500.0,0.00028767,2]
[354957403,1740845480148,-1905.85,0.00028767,2]
[354957404,1740845480158,-500.0,0.00028767,2]
[354957405,1740845480168,-500.0,0.00028767,2]
[354957406,1740845480178,-500.0,0.00028767,2]
[354957407,1740845480188,-1685.79,0.00028767,2]
[354957408,1740845480198,-500.0,0.00028767,2]
[354957409,1740845480208,-564.6,0.00028767,2]
[354957410,1740845480219,-1059.85,0.00028767,2]
[354957411,1740845480229,-500.0,0.00028767,2]
[354957412,1740845480239,-500.0,0.00028767,2]
[354957413,1740845480249,-500.0,0.00028767,2]
[354957414,1740845480259,-732.83,0.00028767,2]
[354957415,1740845480269,-500.0,0.00028767,2]
[354957416,1740845480279,-500.0,0.00028767,2]
[354957417,1740845480288,-500.0,0.00028767,2]
[354957418,1740845480298,-740.07,0.00028767,2]
[354957419,1740845480308,-1458.62,0.00028767,2]
[354957420,1740845480318,-1284.29,0.00028767,2]
[354957421,1740845480328,-543.24,0.00028767,2]
[354957422,1740845480338,-500.0,0.00028767,2]
[354957423,1740845480348,-500.0,0.00028767,2]
[354957424,1740845480358,-500.0,0.00028767,2]
[354957425,1740845480368,-500.0,0.00028767,2]
[354957426,1740845480378,-747.81,0.00028767,2]
[354957427,1740845480388,-778.76,0.00028767,2]
[354957428,1740845480398,-500.0,0.00028767,2]
[354957429,1740845480408,-500.0,0.00028767,2]
[354957430,1740845480418,-500.0,0.00028767,2]
[354957431,1740845480428,-500.0,0.00028767,2]
[354957432,1740845480438,-500.0,0.00028767,2]
[354957433,1740845480448,-1431.27,0.00028767,2]
[354957434,1740845480458,-1335.29,0.00028767,2]
[354957435,1740845480468,-1315.24,0.00028767,2]
[354957436,1740845480478,-673.47,0.00028767,2]
[354957437,1740845480488,-959.71,0.00028767,2]
[354957438,1740845480498,-716.19,0.00028767,2]
[354957439,1740845480507,-578.59,0.00028767,2]
[354957440,1740845480517,-1517.25,0.00028767,2]
[354957441,1740845480527,-500.0,0.00028767,2]
[354957442,1740845480537,-500.0,0.00028767,2]
[354957443,1740845480547,-500.0,0.00028767,2]
[354957444,1740845480557,-2094.38,0.00028767,2]
[354957445,1740845480568,-575.46,0.00028767,2]
[354957446,1740845480578,-500.0,0.00028767,2]
[354957447,1740845480588,-500.0,0.00028767,2]
[354957448,1740845480597,-500.0,0.00028767,2]
[354957449,1740845480607,-2170.83,0.00028767,2]
[354957450,1740845480618,-531.7,0.00028767,2]
[354957451,1740845480628,-2252.21,0.00028767,2]
[354957452,1740845480638,-591.88,0.00028767,2]
[354957453,1740845480648,-1741.22,0.00028767,2]
[354957454,1740845480658,-826.09,0.00028767,2]
[354957455,1740845480667,-664.91,0.00028767,2]
[354957456,1740845480678,-500.0,0.00028767,2]
[354957457,1740845480687,-502.03,0.00028767,2]
[354957458,1740845480696,-680.92,0.00028767,2]
[354957459,1740845480706,-240.65189253,0.00028767,2]
[354957460,1740845480716,-1744.53,0.00028767,2]
[354957461,1740845480728,-560.17873018,0.00028767,2]
[354957462,1740845480738,-500.0,0.00028767,2]
[354957463,1740845480748,-685.6,0.00028767,2]
[354957464,1740845480758,-1572.62,0.00028767,2]
[354957465,1740845480768,-500.0,0.00028767,2]
[354957466,1740845480778,-500.0,0.00028767,2]
[354957467,1740845480788,-588.67118111,0.00028767,2]
[354957468,1740845480797,-500.0,0.00028767,2]
[354957469,1740845480808,-500.0,0.00028767,2]
[354957470,1740845480818,-500.0,0.00028767,2]
[354957471,1740845480828,-1531.22,0.00028767,2]
[354957472,1740845480838,-3254.62,0.00028767,2]
[354957473,1740845480848,-500.0,0.00028767,2]
[354957474,1740845480859,-500.0,0.00028767,2]
[354957475,1740845480871,-1370.24,0.00028767,2]
[354957476,1740845480883,-611.48,0.00028767,2]
[354957477,1740845480894,-500.0,0.00028767,2]
[354957478,1740845480905,-964.9,0.00028767,2]
[354957479,1740845480917,-509.94,0.00028767,2]
[354957480,1740845480927,-7197.11,0.00028767,2]
[354957481,1740845480938,-500.0,0.00028767,2]
[354957482,1740845480950,-500.0,0.00028767,2]
[354957483,1740845480961,-1123.34,0.00028767,2]
[354957484,1740845480973,-600.56,0.00028767,2]
[354957485,1740845480984,-500.0,0.00028767,2]
[354957486,1740845480994,-500.0,0.00028767,2]
[354957487,1740845481005,-649.22,0.00028767,2]
[354957488,1740845481016,-710.98,0.00028767,2]
[354957489,1740845481026,-500.0,0.00028767,2]
[354957490,1740845481036,-539.97,0.00028767,2]